bitfinex-derivatives/quotes_SOLF0:USTF0_20240913
["timestamp","ask_amount","ask_price","bid_price","bid_amount"]
[1726234147292,47.059,132.19,132.18,198.96610822]
[1726234147592,50.75986463,132.19,132.18,198.96610822]
[1726234147991,20.46546463,132.19,132.18,198.96610822]
[1726234148192,20.46546463,132.19,132.18,142.10610822]
[1726234151296,19.09306463,132.19,132.18,142.10610822]
[1726234152195,15.31086463,132.19,132.13,11.61]
[1726234152395,11.61,132.16,132.11,11.61]
[1726234152693,11.61,132.15,132.11,11.61]
[1726234152898,3.82016184,132.14,132.11,11.61]
[1726234153099,11.61,132.16,132.11,11.61]
[1726234153790,15.34002617,132.16,132.11,11.61]
[1726234154488,15.34002617,132.16,132.08,5.1385]
[1726234154489,11.61,132.15,132.1,11.61]
[1726234155397,11.61,132.14,132.08,1.3533]
[1726234155597,161.63639853,132.21,132.09,11.61]
[1726234155796,11.61,132.13,132.08,1.3533]
[1726234156095,11.61,132.13,132.08,12.9633]
[1726234156502,11.61,132.11,132.08,12.9633]
[1726234156899,15.4419022,132.12,132.08,12.9633]
[1726234157204,11.61,132.12,132.08,12.9633]
[1726234157403,11.61,132.12,132.09,11.61]
[1726234157597,15.48772748,132.12,132.09,11.61]
[1726234157798,3.87772748,132.12,132.09,11.61]
[1726234158006,11.61,132.14,132.09,11.61]
[1726234158600,15.45667233,132.14,132.09,11.61]
[1726234160106,11.61,132.13,132.09,11.61]
[1726234160403,11.61,132.1,132.07,2.8515]
[1726234160608,11.61,132.09,132.01,1.4295]
[1726234160903,11.61,132.08,132.04,11.61]
[1726234161700,15.42089476,132.08,132.03,3.7868]
[1726234161901,11.61,132.07,132.03,11.61]
[1726234162103,11.61,132.09,132.04,11.61]
[1726234162808,15.3660657,132.09,132.04,11.61]
[1726234164003,3.7560657,132.09,132.06,11.61]
[1726234164408,3.85267622,132.08,132.06,11.61]
[1726234164612,11.61,132.11,132.06,11.61]
[1726234165103,15.44486958,132.11,132.06,11.61]
[1726234167418,11.61,132.09,132.06,11.61]
[1726234167614,11.61,132.09,132.05,13.0549]
[1726234168409,11.61,132.08,132.05,1.4449]
[1726234169914,3.83486958,132.11,132.05,1.4449]
[1726234170115,11.61,132.11,132.06,11.61]
[1726234170310,15.34636473,132.11,132.06,12.9771]
[1726234170507,11.61,132.1,132.06,1.3671]
[1726234171120,11.61,132.09,132.06,1.3671]
[1726234171521,11.61,132.09,132.05,1.4449]
[1726234172421,11.61,132.07,132.05,1.4449]
[1726234175215,11.61,132.07,132.03,1.3768]
[1726234175423,11.61,132.05,132.03,1.3768]
[1726234175623,11.61,132.05,132.02,1.4426]
[1726234176616,3.79367804,132.04,132.02,1.4426]
[1726234178228,3.79367804,132.04,132.02,13.0526]
[1726234181027,11.61,132.05,132.02,13.0526]
[1726234181323,3.71116439,132.04,132.02,13.0526]
[1726234181525,11.61,132.05,132.02,13.0526]
[1726234182025,3.80134788,132.04,132.02,13.0526]
[1726234184328,3.80134788,132.04,132.02,1.4426]
[1726234187419,11.61,132.03,132.02,1.4426]
[1726234187621,11.61,132.03,131.99,1.4375]
[1726234187822,3.71637205,132.02,131.99,5.2254]
[1726234188224,11.61,132.04,132.0,11.61]
[1726234188423,3.787,132.03,132.0,11.61]
[1726234188622,11.61,132.04,132.0,15.3975]
[1726234189028,11.61,132.04,132.01,3.7873]
[1726234189230,11.61,132.04,132.01,15.3973]
[1726234189528,11.61,132.04,131.99,1.4375]
[1726234189733,11.61,132.04,132.0,11.61]
[1726234190132,11.61,132.04,132.0,15.3974]
[1726234191235,11.61,132.04,132.0,11.61]
[1726234193331,11.61,132.04,132.0,15.3976]
[1726234194032,11.61,132.04,132.0,11.61]
[1726234196330,11.61,132.04,132.0,15.3976]
[1726234196731,15.3967,132.04,132.0,11.61]
[1726234197238,3.7868,132.03,132.0,11.61]
[1726234198641,3.7866,132.04,132.0,15.3976]
[1726234198945,3.7866,132.04,132.01,11.61]
[1726234199728,3.7863,132.05,132.01,15.3973]
[1726234200037,11.61,132.06,132.01,11.61]
[1726234200737,7.5691,132.11,132.02,11.61]
[1726234200932,11.61,132.08,132.04,11.61]
[1726234201137,11.61,132.06,132.02,11.61]
[1726234201333,15.3962,132.05,132.01,11.61]
[1726234201529,11.61,132.03,131.99,1.4375]
[1726234201932,15.3976,132.0,131.99,1.4375]
[1726234202241,11.61,132.02,131.99,1.4375]
[1726234202439,15.3975,132.01,131.97,1.4134]
[1726234202639,11.61,131.98,131.9,1.436]
[1726234202844,11.61,131.98,131.93,11.61]
[1726234203138,3.6974245,132.02,131.9,4.1406]
[1726234203338,11.61,131.95,131.91,11.61]
[1726234203639,11.61,131.97,131.92,11.61]
[1726234203842,3.71864575,131.97,131.92,11.61]
[1726234204155,11.61,131.96,131.92,11.61]
[1726234204333,11.61,131.95,131.9,4.1406]
[1726234204535,3.8148993,131.96,131.94,3.7893]
[1726234204737,11.61,131.97,131.94,3.7893]
[1726234205341,3.75199089,131.96,131.93,3.7896]
[1726234205746,15.36199089,131.96,131.93,3.7896]
[1726234205936,11.61,131.96,131.92,3.7899]
[1726234206544,15.43555934,131.96,131.92,3.7899]
[1726234207241,3.82555934,131.96,131.93,3.7896]
[1726234207543,11.61,131.97,131.93,11.61]
[1726234207845,11.61,131.97,131.9,4.1406]
[1726234207846,3.86386044,131.97,131.94,11.61]
[1726234208235,15.47386044,131.97,131.92,11.61]
[1726234209236,11.61,131.98,131.94,11.61]
[1726234209842,11.61,131.98,131.95,3.789]
[1726234210150,11.61,131.96,131.92,11.61]
[1726234210346,11.61,131.95,131.9,2.8083]
[1726234210542,15.31848699,131.94,131.9,2.8083]
[1726234210852,11.61,131.95,131.91,11.61]
[1726234211147,151.58417619,132.01,131.93,11.61]
[1726234211342,11.61,131.98,131.93,11.61]
[1726234211544,11.61,131.98,131.94,11.61]
[1726234211758,11.61,131.95,131.91,1.3914]
[1726234212051,11.61,131.95,131.91,13.0014]
[1726234212443,11.61,131.95,131.92,3.7897]
[1726234213348,11.61,131.95,131.93,3.7896]
[1726234213654,11.61,131.96,131.92,11.61]
[1726234213856,11.61,131.96,131.93,3.7894]
[1726234214057,11.61,131.96,131.92,11.61]
[1726234214249,155.42983413,132.01,131.95,11.61]
[1726234214552,155.42983413,132.01,131.96,11.61]
[1726234214553,167.03983413,132.01,131.96,11.61]
[1726234214755,3.79569198,132.08,131.97,14.3286]
[1726234214948,11.61,132.03,131.99,3.7877]
[1726234215154,3.82185348,132.08,131.97,14.3286]
[1726234215351,227.0,132.12,132.0,11.61]
[1726234215555,11.61,132.02,131.98,1.3619]
[1726234215756,11.61,132.02,131.98,12.9719]
[1726234216450,11.61,132.01,131.98,1.3619]
[1726234216650,3.78697148,132.03,131.98,12.9719]
[1726234216651,11.61,132.03,131.98,12.9719]
[1726234216854,11.61,132.03,131.98,16.76]
[1726234217151,11.61,132.02,131.98,12.9719]
[1726234217352,7.91264261,132.11,132.0,11.61]
[1726234217551,11.61,132.05,132.0,11.61]
[1726234217750,11.61,132.05,132.0,15.3975]
[1726234218052,11.61,132.05,132.0,11.61]
[1726234218256,3.71087138,132.06,132.02,11.61]
[1726234218449,11.61,132.06,132.02,11.61]
[1726234218852,11.61,132.05,132.02,11.61]
[1726234219051,11.61,132.04,132.0,11.61]
[1726234219857,11.61,132.06,132.0,11.61]
[1726234220151,11.61,132.06,132.01,3.7871]
[1726234220351,11.61,132.06,132.0,11.61]
[1726234220743,11.61,132.03,131.98,1.3619]
[1726234220948,11.61,132.04,132.0,11.61]
[1726234221149,11.61,132.04,132.01,3.7873]
[1726234221952,11.61,132.04,132.02,3.787]
[1726234222149,3.86209574,132.07,132.01,11.61]
[1726234222354,11.61,132.06,132.02,1.4106]
[1726234223253,11.61,132.05,132.02,5.1975]
[1726234223449,11.61,132.07,132.02,13.0206]
[1726234223861,15.31159296,132.07,132.02,16.8075]
[1726234224263,21.88159296,132.07,132.02,1.4106]
[1726234224563,18.18,132.05,131.98,1.3619]
[1726234224771,18.18,132.05,131.98,2.7989]
[1726234224963,18.18,132.05,132.0,3.7875]
[1726234225660,3.72025162,132.05,132.01,3.7873]
[1726234225859,18.18,132.08,132.0,18.18]
[1726234226360,18.18,132.1,132.02,18.18]
[1726234226675,3.77709564,132.09,132.03,2.7826]
[1726234226858,3.87600424,132.09,132.03,2.7826]
[1726234227963,3.87600424,132.09,132.04,3.7864]
[1726234228166,3.87600424,132.09,132.03,2.7826]
[1726234228461,3.71268008,132.09,132.03,2.7826]
[1726234228651,3.71268008,132.09,132.03,6.5693]
[1726234228853,18.18,132.08,132.03,2.7826]
[1726234229057,18.18,132.07,131.98,19.5419]
[1726234229255,18.18,132.07,131.99,2.7826]
[1726234229660,18.18,132.05,132.0,3.7874]
[1726234229857,21.97452728,132.05,132.0,3.7874]
[1726234230166,18.18,132.07,131.99,2.7826]
[1726234230460,21.88131241,132.07,131.99,2.7826]
[1726234231166,21.88131241,132.07,132.0,3.7875]
[1726234231463,18.18,132.03,131.99,1.4173]
[1726234232561,18.18,132.06,132.0,3.7875]
[1726234233056,3.70235086,132.05,132.0,3.7875]
[1726234233256,3.70235086,132.05,131.99,2.8121]
[1726234233458,18.18,132.07,131.99,2.8121]
[1726234233958,21.89323529,132.07,131.99,2.8121]
[1726234234169,21.89323529,132.07,132.02,3.787]
[1726234234367,18.18,132.05,131.99,2.8121]
[1726234234760,18.18,132.05,132.0,3.7875]
[1726234234969,18.18,132.05,131.99,2.8121]
[1726234235557,18.18,132.05,132.01,3.7872]
[1726234235863,21.89323529,132.07,131.99,2.8121]
[1726234236166,18.18,132.07,132.0,18.18]
[1726234236364,3.85953608,132.07,132.02,18.18]
[1726234236571,18.18,132.09,132.02,18.18]
[1726234236764,18.18,132.09,132.03,3.7866]
[1726234236970,3.79510309,132.08,132.0,18.18]
[1726234237465,3.79510309,132.08,132.03,3.7865]
[1726234237863,3.79510309,132.08,132.04,3.7865]
[1726234238070,3.79510309,132.08,132.0,18.18]
[1726234238563,3.79510309,132.08,131.99,2.8121]
[1726234238564,3.79510309,132.08,132.04,3.7863]
[1726234238864,18.18,132.1,132.02,18.18]
[1726234239364,21.9145562,132.1,132.03,3.7868]
[1726234239867,21.9145562,132.1,132.02,21.967]
[1726234240066,21.9145562,132.1,132.02,18.18]
[1726234240369,21.9145562,132.1,132.03,3.7867]
[1726234241365,21.9145562,132.1,132.04,3.7864]
[1726234242072,21.9145562,132.1,132.03,3.7867]
[1726234242369,18.18,132.08,132.0,18.18]
[1726234242666,18.18,132.08,132.02,3.7868]
[1726234242867,18.18,132.1,132.02,18.18]
[1726234243070,21.92801061,132.1,132.02,18.18]
[1726234243266,21.92801061,132.1,132.03,3.7867]
[1726234243674,21.92801061,132.1,132.04,3.7863]
[1726234243970,21.92801061,132.1,132.02,18.18]
[1726234244368,21.92801061,132.1,132.04,3.7863]
[1726234246267,3.7854,132.08,132.03,3.7866]
[1726234246862,3.7854,132.08,132.04,3.7864]
[1726234247262,3.7856,132.07,132.02,18.18]
[1726234247471,18.18,132.08,132.0,18.18]
[1726234247766,3.786,132.06,132.0,18.18]
[1726234247970,18.18,132.08,132.01,3.7872]
[1726234248473,3.7862,132.06,132.01,3.7872]
[1726234248658,3.7862,132.06,132.02,3.7869]
[1726234249471,3.7858,132.07,132.03,3.7868]
[1726234250071,15.4258,132.07,132.03,15.4268]
[1726234250770,11.64,132.07,132.03,15.4268]
[1726234250967,11.64,132.07,132.03,11.64]
[1726234252068,15.4255,132.08,132.04,3.7864]
[1726234252463,15.4255,132.08,132.03,11.64]
[1726234252659,71.8549797,132.16,132.05,11.64]
[1726234252865,11.64,132.09,132.05,11.64]
[1726234253066,3.82190223,132.08,132.05,15.4261]
[1726234253769,15.4251,132.09,132.05,15.4261]
[1726234254265,19.22881205,132.09,132.05,15.4261]
[1726234254471,15.44371205,132.09,132.05,15.4261]
[1726234255073,19.22881205,132.09,132.05,15.4261]
[1726234255468,19.22881205,132.09,132.05,11.64]
[1726234255969,3.7849,132.1,132.05,11.64]
[1726234256166,3.78779852,132.1,132.06,11.64]
[1726234256367,3.78779852,132.1,132.07,11.64]
[1726234256567,15.4246,132.11,132.06,15.4257]
[1726234257164,3.7843,132.12,132.07,15.4256]
[1726234257470,15.45146999,132.11,132.07,15.4256]
[1726234258077,15.45146999,132.11,132.07,11.64]
[1726234258472,19.23616999,132.11,132.07,11.64]
[1726234259172,11.64,132.09,132.05,11.64]
[1726234259568,11.64,132.08,132.04,3.7863]
[1726234259770,11.64,132.06,131.99,2.8121]
[1726234259971,11.64,132.06,132.02,11.64]
[1726234260276,11.64,132.05,131.99,2.8121]
[1726234260467,11.64,132.04,132.0,11.64]
[1726234260667,11.64,132.04,132.01,3.7873]
[1726234261077,15.45365315,132.05,132.02,3.7869]
[1726234261273,11.64,132.05,132.01,11.64]
[1726234261476,15.4262,132.05,132.01,11.64]
[1726234261777,15.4262,132.05,132.01,15.4272]
[1726234262174,11.64,132.05,132.01,11.64]
[1726234262373,3.79774083,132.06,132.01,3.7872]
[1726234262679,3.7863,132.05,132.01,3.7872]
[1726234262874,7.60866704,132.05,132.01,3.7872]
[1726234263673,3.7865,132.04,132.0,3.7876]
[1726234264075,3.82236704,132.05,131.99,20.9921]
[1726234264264,3.7863,132.05,132.01,3.7872]
[1726234264469,3.7711272,132.05,131.99,20.9921]
[1726234264673,3.7866,132.04,132.0,3.7874]
[1726234265471,3.83023459,132.05,131.99,2.8121]
[1726234265780,18.18,132.08,132.0,18.18]
[1726234265965,22.00227783,132.08,132.0,18.18]
[1726234266579,3.786,132.06,132.02,3.7868]
[1726234266779,22.00227783,132.08,132.02,3.7868]
[1726234267678,3.7862,132.06,132.02,3.7868]
[1726234267981,22.00227783,132.08,132.0,18.18]
[1726234268181,3.7861,132.06,132.0,18.18]
[1726234268381,3.7861,132.06,132.01,3.7872]
[1726234268582,22.00227783,132.08,132.01,3.7872]
[1726234268778,3.82227783,132.08,132.01,18.18]
[1726234268983,68.48253,132.18,132.03,18.18]
[1726234268984,18.18,132.12,132.03,18.18]
[1726234269183,3.76089427,132.11,132.04,2.8024]
[1726234269385,7.54549427,132.11,132.07,3.7855]
[1726234269581,3.76089427,132.11,132.04,4.2004]
[1726234270478,3.76089427,132.11,132.05,18.18]
[1726234271276,18.18,132.14,132.05,18.18]
[1726234271583,18.18,132.16,132.07,18.18]
[1726234272085,3.7841,132.13,132.07,18.18]
[1726234272788,3.7841,132.13,132.09,3.785]
[1726234273082,18.18,132.14,132.07,18.18]
[1726234273288,18.18,132.14,132.07,21.9654]
[1726234273485,18.18,132.14,132.07,18.18]
[1726234273683,3.7844,132.12,132.07,18.18]
[1726234273983,3.7844,132.12,132.07,3.7855]
[1726234274183,3.7844,132.12,132.05,18.18]
[1726234274689,3.7844,132.12,132.08,3.7852]
[1726234276983,3.784,132.13,132.09,3.7849]
[1726234277187,18.18,132.18,132.09,18.18]
[1726234277592,3.7838,132.14,132.1,3.7847]
[1726234277982,18.18,132.18,132.09,18.18]
[1726234278184,18.18,132.18,132.1,18.18]
[1726234278185,3.7832,132.16,132.1,18.18]
[1726234278384,18.18,132.18,132.1,18.18]
[1726234278689,3.7831,132.16,132.12,3.7841]
[1726234278885,18.18,132.19,132.1,18.18]
[1726234279082,18.18,132.19,132.11,4.1242]
[1726234279396,18.18,132.17,132.11,4.1242]
[1726234279594,3.7834,132.15,132.11,7.9085]
[1726234279779,18.18,132.17,132.11,4.1242]
[1726234279982,3.72274189,132.16,132.11,4.1242]
[1726234280389,18.18,132.17,132.11,4.1242]
[1726234280596,3.7314505,132.16,132.11,4.1242]
[1726234280795,18.18,132.17,132.11,7.9085]
[1726234280991,18.18,132.19,132.11,4.1242]
[1726234281193,18.18,132.21,132.12,18.18]
[1726234281790,3.7828,132.18,132.12,18.18]
[1726234281993,18.18,132.19,132.11,22.3042]
[1726234282388,3.7829,132.17,132.13,3.7839]
[1726234282588,18.18,132.19,132.11,22.3042]
[1726234283286,18.18,132.17,132.11,4.1242]
[1726234283491,3.7835,132.15,132.11,4.1242]
[1726234283691,3.7835,132.15,132.11,2.7958]
[1726234283891,22.06110564,132.16,132.11,2.7958]
[1726234284093,18.18,132.16,132.07,18.18]
[1726234284296,3.7838,132.14,132.08,2.8514]
[1726234284496,3.7838,132.14,132.09,18.18]
[1726234285296,18.18,132.13,132.08,2.8514]
[1726234286086,3.69593212,132.12,132.09,3.785]
[1726234286290,18.18,132.15,132.09,3.785]
[1726234286491,3.7839,132.13,132.09,3.785]
[1726234287399,18.18,132.13,132.08,2.8514]
[1726234287893,22.02478448,132.15,132.08,2.8514]
[1726234288201,18.18,132.15,132.08,6.6367]
[1726234288401,18.18,132.13,132.08,2.8514]
[1726234289397,22.02061813,132.15,132.08,2.8514]
[1726234290295,3.7838,132.14,132.09,3.7849]
[1726234290596,3.7838,132.14,132.09,18.18]
[1726234290791,22.02061813,132.15,132.08,2.8514]
[1726234290992,3.7847,132.11,132.08,2.8514]
[1726234291300,18.18,132.13,132.08,2.8514]
[1726234291600,3.7844,132.12,132.08,2.8514]
[1726234291995,18.18,132.13,132.08,2.8514]
[1726234292301,18.18,132.13,132.05,18.18]
[1726234292499,3.7846,132.11,132.06,3.7858]
[1726234292813,3.7846,132.11,132.05,18.18]
[1726234292998,3.7846,132.11,132.07,3.7856]
[1726234293294,22.02498253,132.15,132.07,18.18]
[1726234293499,18.18,132.15,132.07,18.18]
[1726234293891,18.18,132.13,132.04,1.3148]
[1726234294095,3.7858,132.07,132.04,1.3148]
[1726234294305,18.18,132.1,132.04,1.3148]
[1726234294597,3.7861,132.06,132.02,6.6236]
[1726234294995,18.18,132.08,132.02,2.8366]
[1726234295195,3.7864,132.05,132.02,2.8366]
[1726234295597,18.18,132.08,132.02,2.8366]
[1726234296001,3.7861,132.06,132.02,6.6235]
[1726234297003,3.7863,132.05,132.02,2.8366]
[1726234297596,3.83250795,132.07,132.02,2.8366]
[1726234297805,18.18,132.09,132.02,2.8366]
[1726234297996,18.18,132.07,132.02,2.8366]
[1726234298202,3.7868,132.03,132.0,5.1318]
[1726234298506,18.18,132.07,132.0,5.1318]
[1726234298803,3.7866,132.04,132.0,5.1318]
[1726234299795,3.7864,132.05,132.01,3.7873]
[1726234302004,3.7864,132.05,132.02,3.787]
[1726234302404,3.7864,132.05,132.01,3.7872]
[1726234302711,3.7864,132.05,132.0,4.1798]
[1726234302908,3.7861,132.06,132.02,3.7868]
[1726234303105,3.7861,132.06,132.0,22.3598]
[1726234303403,18.18,132.07,132.0,22.3598]
[1726234303608,3.7863,132.05,132.01,3.7871]
[1726234304206,3.7863,132.05,132.02,3.7869]
[1726234304611,18.18,132.06,132.0,4.1798]
[1726234304907,18.18,132.04,132.0,2.8355]
[1726234305904,3.7869,132.03,132.0,2.8355]
[1726234306907,18.18,132.04,131.95,18.18]
[1726234307108,18.18,132.02,131.95,18.18]
[1726234307418,18.18,132.02,131.96,3.7887]
[1726234307615,18.18,132.02,131.94,2.8037]
[1726234307910,18.18,132.0,131.94,2.8037]
[1726234308102,18.18,131.99,131.94,2.8037]
[1726234308507,3.7886,131.97,131.94,2.8037]
[1726234308915,18.18,131.99,131.94,2.8037]
[1726234309608,18.18,131.99,131.93,1.4111]
[1726234309810,3.7882,131.98,131.93,5.2005]
[1726234310311,3.72281421,132.02,131.93,1.4111]
[1726234310510,18.18,132.01,131.93,1.4111]
[1726234310712,3.7881,131.99,131.94,3.7891]
[1726234310917,7.49185454,131.99,131.94,3.7891]
[1726234311511,3.70375454,131.99,131.95,3.7888]
[1726234311707,3.7877,132.0,131.95,3.7888]
[1726234312121,18.18,132.02,131.96,3.7887]
[1726234312616,7.53835203,132.01,131.96,3.7887]
[1726234313117,3.75095203,132.01,131.95,3.789]
[1726234313313,3.75095203,132.01,131.93,19.5911]
[1726234314614,7.53845203,132.01,131.96,3.7886]
[1726234314818,3.75095203,132.01,131.96,3.7886]
[1726234315114,3.7877,132.0,131.96,3.7886]
[1726234315715,3.75095203,132.01,131.97,3.7882]
[1726234315919,18.18,132.04,131.95,18.18]
[1726234316117,21.98914285,132.04,131.96,20.9638]
[1726234316616,3.7869,132.03,131.98,3.7879]
[1726234317024,21.98914285,132.04,131.99,3.7878]
[1726234318825,3.7868,132.03,131.99,3.7878]
[1726234319024,21.98914285,132.04,131.99,3.7878]
[1726234319419,25.77584285,132.04,131.99,3.7878]
[1726234320020,3.80914285,132.04,131.96,20.9638]
[1726234320226,3.7864,132.05,131.96,20.9638]
[1726234320413,3.86854673,132.05,131.96,2.7838]
[1726234320615,3.7867,132.04,131.99,3.7877]
[1726234320822,3.72033962,132.1,132.03,18.18]
[1726234321131,18.18,132.13,132.06,3.7857]
[1726234321521,22.03239069,132.13,132.06,3.7857]
[1726234321728,3.85239069,132.13,132.06,18.18]
[1726234322025,18.18,132.15,132.06,18.18]
[1726234322216,18.18,132.17,132.09,3.7849]
[1726234322419,21.93236796,132.17,132.09,3.7849]
[1726234322821,21.93236796,132.17,132.1,3.7848]
[1726234323019,21.93236796,132.17,132.08,18.18]
[1726234323422,3.75236796,132.17,132.1,18.18]
[1726234323623,1.4415,132.19,132.12,18.18]
[1726234324026,1.4415,132.19,132.13,3.7837]
[1726234325924,3.7826,132.18,132.13,3.7837]
[1726234326120,18.18,132.22,132.13,20.8775]
[1726234326527,1.3803,132.23,132.17,3.7828]
[1726234327528,1.3803,132.23,132.17,3.7826]
[1726234327734,1.3803,132.23,132.15,18.18]
[1726234328031,3.7816,132.22,132.16,3.7829]
[1726234328830,3.7816,132.21,132.16,3.7829]
[1726234329418,3.7815,132.22,132.16,3.7829]
[1726234330131,3.7815,132.22,132.17,3.7827]
[1726234330526,21.99699643,132.24,132.19,3.7821]
[1726234331429,21.9609,132.24,132.19,3.7821]
[1726234331737,21.9609,132.24,132.17,18.18]
[1726234331738,21.91807721,132.26,132.2,3.7818]
[1726234331928,18.18,132.26,132.2,3.7818]
[1726234332635,18.18,132.26,132.21,3.7816]
[1726234332835,19.5992,132.28,132.19,18.18]
[1726234333030,3.78,132.27,132.2,4.1418]
[1726234333234,3.78,132.27,132.23,3.781]
[1726234333830,22.0486601,132.28,132.24,3.7808]
[1726234334137,22.0486601,132.28,132.2,22.3218]
[1726234334534,3.7801,132.27,132.22,3.7812]
[1726234335934,21.9598,132.28,132.2,22.3218]
[1726234336441,3.7798,132.28,132.2,22.3218]
[1726234336640,3.7798,132.28,132.23,3.7809]
[1726234337041,3.7799,132.27,132.23,3.7809]
[1726234337645,3.7797,132.28,132.23,3.7809]
[1726234337844,18.18,132.28,132.22,3.7812]
[1726234338039,18.18,132.28,132.2,4.1418]
[1726234338340,3.7804,132.26,132.2,4.1418]
[1726234338546,18.18,132.28,132.22,3.7813]
[1726234338733,18.18,132.28,132.2,22.3218]
[1726234339044,21.97152478,132.3,132.24,3.7806]
[1726234339241,18.18,132.3,132.2,22.3218]
[1726234339437,3.7796,132.28,132.23,3.7809]
[1726234339757,3.7796,132.28,132.2,22.3218]
[1726234339938,3.7796,132.28,132.23,3.7808]
[1726234340138,3.7796,132.28,132.2,22.3218]
[1726234341040,18.18,132.28,132.2,4.1418]
[1726234341537,3.7805,132.26,132.22,3.7813]
[1726234342248,18.18,132.28,132.2,22.3218]
[1726234342845,18.18,132.28,132.22,3.7811]
[1726234342846,3.7802,132.26,132.22,3.7811]
[1726234344948,3.7806,132.25,132.22,3.7811]
[1726234345246,18.18,132.26,132.2,4.1418]
[1726234345444,3.87022323,132.3,132.15,18.18]
[1726234345445,18.18,132.23,132.15,18.18]
[1726234345641,18.18,132.23,132.16,2.7238]
[1726234345942,3.7821,132.2,132.16,6.5067]
[1726234346546,3.7821,132.2,132.17,3.7827]
[1726234346846,18.18,132.21,132.16,2.7238]
[1726234347241,18.18,132.22,132.16,2.7238]
[1726234347441,3.7818,132.21,132.16,2.7238]
[1726234347637,3.7818,132.21,132.17,3.7826]
[1726234347939,3.7814,132.22,132.16,2.7238]
[1726234348251,19.4983,132.26,132.19,3.782]
[1726234348440,1.3183,132.26,132.19,18.18]
[1726234348747,1.3183,132.26,132.2,3.7817]
[1726234348947,3.7807,132.25,132.2,3.7817]
[1726234349141,3.7807,132.25,132.19,18.18]
[1726234349541,3.7807,132.25,132.2,3.7818]
[1726234350650,3.7807,132.25,132.19,18.18]
[1726234350651,3.7802,132.26,132.21,3.7814]
[1726234351046,18.18,132.29,132.21,18.18]
[1726234351242,3.7801,132.27,132.22,6.5752]
[1726234351446,3.71953988,132.29,132.22,2.7941]
[1726234351647,3.7799,132.28,132.22,6.5754]
[1726234352246,3.78764946,132.29,132.22,6.5754]
[1726234352556,18.18,132.31,132.23,3.781]
[1726234352747,3.83494778,132.3,132.22,2.7941]
[1726234353051,3.7795,132.29,132.24,3.7808]
[1726234353352,18.18,132.31,132.23,18.18]
[1726234353353,22.02024519,132.31,132.23,18.18]
[1726234353546,3.7792,132.3,132.25,3.7805]
[1726234353856,3.82775843,132.31,132.24,18.18]
[1726234354151,3.7792,132.3,132.25,3.7804]
[1726234354361,18.18,132.33,132.25,3.7804]
[1726234354771,3.75577177,132.32,132.25,3.7804]
[1726234355062,18.18,132.33,132.26,3.7801]
[1726234355267,18.18,132.33,132.23,19.5218]
[1726234355560,3.7794,132.29,132.24,3.7806]
[1726234355751,21.95430665,132.31,132.23,19.5218]
[1726234356363,3.7795,132.29,132.24,3.7807]
[1726234356862,3.7792,132.3,132.25,3.7803]